fUSD/lending_fUSD_20250420
["ID","MTS","AMOUNT","RATE_DAILY","PERIOD"]
[358458663,1745167834252,-603.47396589,0.0006098,120]
[358458664,1745167834261,-500.0,0.0006098,120]
[358458665,1745167834271,-500.0,0.0006098,120]
[358458666,1745167834280,-500.0,0.0006098,120]
[358458667,1745167834290,-186.68009813,0.0006098,120]
[358458668,1745167834300,-500.0,0.0006098,120]
[358458669,1745167834309,-500.0,0.0006098,120]
[358458670,1745167834319,-500.0,0.0006098,120]
[358458671,1745167834329,-500.0,0.0006098,120]
[358458672,1745167834338,-500.0,0.0006098,120]
[358458673,1745167834347,-500.0,0.0006098,120]
[358458674,1745167834357,-500.0,0.0006098,120]
[358458675,1745167834366,-500.0,0.0006098,120]
[358458676,1745167834377,-500.0,0.0006098,120]
[358458677,1745167834386,-500.0,0.0006098,120]
[358458678,1745167834396,-434.06395847,0.0006098,120]
[358458679,1745167834406,-5509.34,0.0006098,2]
[358458680,1745167834415,-500.0,0.0006098,120]
[358458681,1745167834425,-500.0,0.0006098,120]
[358458682,1745167834435,-528.85673418,0.0006098,120]
[358458683,1745167834445,-500.0,0.0006098,120]
[358458684,1745167834455,-500.0,0.0006098,120]
[358458685,1745167834465,-500.0,0.0006098,120]
[358458686,1745167834476,-465.11376393,0.0006098,120]
[358458687,1745167834486,-500.0,0.0006098,120]
[358458688,1745167834495,-500.0,0.0006098,120]
[358458689,1745167834505,-582.48968904,0.0006098,118]
[358458690,1745167834515,-643.77,0.0006098,2]
[358458691,1745167834524,-500.0,0.0006098,120]
[358458692,1745167834534,-500.0,0.0006098,120]
[358458693,1745167834543,-282.83059269,0.0006098,120]
[358458694,1745167834553,-500.0,0.0006098,120]
[358458695,1745167834562,-500.0,0.0006098,120]
[358458696,1745167834571,-150.98,0.0006098,120]
[358458697,1745167834580,-150.98,0.0006098,120]
[358458698,1745167834590,-150.98,0.0006098,120]
[358458699,1745167834599,-150.98,0.0006098,120]
[358458700,1745167834608,-500.0,0.00060989,120]
[358458701,1745167834618,-500.0,0.00060989,120]
[358458702,1745167834627,-500.0,0.00060989,120]
[358458703,1745167834638,-500.0,0.00060989,120]
[358458704,1745167834647,-500.0,0.00060989,120]
[358458705,1745167834658,-205.7875697,0.00060989,120]
[358458706,1745167834667,-522.88,0.00060989,120]
[358458707,1745167834677,-500.0,0.00060989,120]
[358458708,1745167834687,-500.0,0.00060989,120]
[358458709,1745167834696,-500.0,0.00060989,120]
[358458710,1745167834705,-500.0,0.00060989,120]
[358458711,1745167834714,-505.18544686,0.00060989,120]
[358458712,1745167834726,-500.0,0.00060989,120]
[358458713,1745167834735,-500.0,0.00060989,120]
[358458714,1745167834745,-500.0,0.00060989,120]
[358458715,1745167834754,-315.0883968,0.00060989,120]
[358458718,1745167838218,-215.0,0.00047734,2]
[358458719,1745167838228,-184.9116032,0.00060989,120]
[358458720,1745167838237,-500.0,0.00060989,120]
[358458721,1745167838247,-768.67,0.00060989,12]
[358458722,1745167838255,-244.27909749,0.00060989,120]
[358458723,1745167838266,-544.74279589,0.00060989,120]
[358458724,1745167838275,-500.0,0.00060989,120]
[358458725,1745167838284,-500.0,0.00060989,120]
[358458726,1745167838294,-500.0,0.00060989,120]
[358458727,1745167838303,-500.0,0.00060989,120]
[358458728,1745167838313,-500.0,0.00060989,120]
[358458729,1745167838322,-500.0,0.00060989,120]
[358458730,1745167838331,-500.0,0.00060989,120]
[358458731,1745167838340,-500.0,0.00060989,120]
[358458732,1745167838349,-500.0,0.00060989,120]
[358458733,1745167838358,-500.0,0.00060989,120]
[358458734,1745167838367,-500.0,0.00060989,120]
[358458735,1745167838377,-500.0,0.00060989,8]
[358458736,1745167838386,-500.0,0.00060989,120]
[358458737,1745167838395,-500.0,0.00060989,120]
[358458738,1745167838404,-500.0,0.00060989,120]
[358458739,1745167838414,-500.0,0.00060989,120]
[358458740,1745167838423,-500.0,0.00060989,120]
[358458741,1745167838432,-500.0,0.00060989,120]
[358458742,1745167838442,-500.0,0.00060989,120]
[358458743,1745167838452,-500.0,0.00060989,120]
[358458744,1745167838462,-500.0,0.00060989,120]
[358458745,1745167838472,-500.0,0.00060989,120]
[358458746,1745167838482,-500.0,0.00060989,120]
[358458747,1745167838491,-500.0,0.00060989,120]
[358458749,1745167838501,-500.0,0.00060989,120]
[358458750,1745167838510,-625.82,0.00060989,120]
[358458751,1745167838520,-500.0,0.00060989,120]
[358458752,1745167838529,-500.0,0.00060989,120]
[358458753,1745167838538,-226.65650344,0.00060989,120]
[358458754,1745167838550,-273.34349656,0.00060989,120]
[358458755,1745167838560,-500.0,0.00060989,2]
[358458756,1745167838570,-500.0,0.00060989,2]
[358458757,1745167838580,-500.0,0.00060989,2]
[358458758,1745167838589,-85.28829091,0.00060989,120]
[358458759,1745167838601,-414.71170909,0.00060989,120]
[358458760,1745167838611,-500.0,0.00060989,120]
[358458761,1745167838620,-63.48953604,0.0006099,120]
[358458762,1745167838632,-87.49046396,0.0006099,120]
[358458763,1745167838642,-150.98,0.0006099,120]
[358458765,1745167838651,-187.62502604,0.0006099,5]
[358458766,1745167838662,-1660.7,0.0006099,5]
[358458767,1745167838673,-330079.20349986,0.0006099,5]
[358458768,1745167838684,-4437.6070826,0.0006099,5]
[358458775,1745167840485,-500.0,0.0006098,120]
[358458776,1745167840495,-476.52497286,0.0006099,5]
[358458792,1745167843193,-423.95581672,0.0006098,120]
[358458860,1745167844012,-76.04418328,0.0006098,120]
[358458862,1745167844022,-10814.62539062,0.0006099,5]
[358458916,1745167844860,151.0,0.00053097,30]
[358458917,1745167846263,-630.68215134,0.0006098,60]
[358458918,1745167846273,-1665.90986802,0.0006099,5]
[358458919,1745167846282,-2354.60273241,0.0006099,5]
[358458946,1745167846817,151.0,0.00052962,30]
[358458947,1745167860918,151.0,0.00050245,30]
[358458948,1745167861586,152.44,0.000481,45]
[358458949,1745167863610,151.0,0.00050245,30]
[358458950,1745167877374,151.0,0.0004899,15]
[358458951,1745167879654,151.0,0.0004899,15]
[358458952,1745167893478,151.0,0.00049868,30]
[358458953,1745167895823,151.0,0.00049868,30]
[358458954,1745167909924,151.0,0.00050741,30]
[358458955,1745167912277,151.0,0.00050741,30]
[358458956,1745167925989,151.0,0.00051066,30]
[358458957,1745167928336,151.0,0.00051066,30]
[358458958,1745167942066,151.0,0.00051834,30]
[358458959,1745167944392,151.0,0.00051834,30]
[358458960,1745167958095,151.0,0.00052232,30]
[358458961,1745167960877,151.0,0.00052232,30]
[358458962,1745167974149,151.0,0.00052696,30]
[358458963,1745167977367,151.0,0.00052879,30]
[358458964,1745167982785,151.0,0.00055,120]
[358458965,1745167990221,151.0,0.00053142,30]
[358458966,1745167993860,151.0,0.00053102,30]
[358458967,1745168006330,151.0,0.00053168,30]
[358458968,1745168010291,151.0,0.0005336,30]
[358458969,1745168022613,151.0,0.00053515,30]
[358458970,1745168026459,151.0,0.00053747,30]
[358458971,1745168038661,151.0,0.00053161,30]
[358458972,1745168042710,151.0,0.00053161,30]
[358458973,1745168055541,151.0,0.00053201,30]
[358458974,1745168058785,151.0,0.00053326,30]
[358458975,1745168071629,151.0,0.00053416,30]
[358458976,1745168075508,151.0,0.00053476,30]
[358458977,1745168087687,151.0,0.00053596,30]
[358458978,1745168091834,151.0,0.00053596,30]
[358458979,1745168103785,151.0,0.00053652,30]
[358458980,1745168107887,151.0,0.00053652,30]
[358458981,1745168111500,450.0,0.00017,2]
[358458982,1745168390371,227.06,0.00044453,7]
[358458983,1745168395372,201.53,0.00044453,7]
[358458984,1745168412784,150.609,0.00049334,30]
[358458985,1745168461725,152.45,0.000481,45]
[358458986,1745168461779,152.45,0.000536,54]
[358458987,1745168461850,152.45,0.000536,54]
[358458988,1745168738265,203.98,0.00052,120]
[358458991,1745169032209,-150.0,0.0005572,12]
[358458992,1745169032219,-300.0,0.00056,4]
[358458993,1745169032228,-452.31181921,0.00056,120]
[358458994,1745169032239,-243.39159718,0.00056347,120]
[358458995,1745169032248,-261.56,0.00056931,2]
[358458996,1745169032259,-150.0,0.00057506,120]
[358458997,1745169032269,-300.0,0.00057735,5]
[358458998,1745169032279,-300.0,0.00057735,5]
[358458999,1745169032292,-150.0,0.00058055,120]
[358459000,1745169032302,-951.68833475,0.000581,90]
[358459001,1745169032314,-1048.31166525,0.000581,90]
[358459002,1745169032323,-169.56,0.00058402,120]
[358459003,1745169032332,-163.8,0.00058453,2]
[358459004,1745169032342,-150.16,0.00058465,120]
[358459005,1745169032351,-300.0,0.000586,10]
[358459006,1745169032360,-300.0,0.000586,10]
[358459007,1745169032370,-4389.27301965,0.00058601,30]
[358459008,1745169032389,-443.42,0.00058601,30]
[358459009,1745169032400,-6927.63500677,0.00058601,30]
[358459010,1745169032518,-2713.21734341,0.00058601,30]
[358459011,1745169032530,-3341.37093081,0.00058601,30]
[358459012,1745169032541,-4614.66753364,0.00058601,30]
[358459013,1745169032576,-1828.91616572,0.00058601,30]
[358459015,1745169032585,-340.14,0.00058723,30]
[358459017,1745169032595,-150.0,0.00058858,2]
[358459019,1745169032604,-150.0,0.00058942,7]
[358459021,1745169032614,-204.15212297,0.00059,90]
[358459023,1745169032624,-173.0,0.00059,120]
[358459026,1745169032633,-261.56,0.00059195,2]
[358459028,1745169032643,-81.15482205,0.000592,60]
[358459031,1745169032662,-71.29517795,0.000592,60]
[358459033,1745169032671,-152.45,0.000592,60]
[358459035,1745169032680,-83.63482205,0.00059205,2]
[358459041,1745169038335,-416.15458827,0.00059205,2]
[358459042,1745169038344,-172.41,0.00059711,120]
[358459043,1745169038353,-200.0,0.00059851,120]
[358459044,1745169038362,-565.79601341,0.0005986,120]
[358459045,1745169038465,-434.20398659,0.0005986,120]
[358459046,1745169038474,-634.60269738,0.0005989,15]
[358459047,1745169038484,-652.25083912,0.0005989,80]
[358459048,1745169038494,-160.93902895,0.0005989,28]
[358459049,1745169038503,-850.0,0.00059954,9]
[358459050,1745169038513,-200.0,0.00059954,2]
[358459051,1745169038522,-150.98,0.0005998,120]
[358459052,1745169038532,-150.98,0.0005998,120]
[358459053,1745169038542,-150.98,0.0005998,120]
[358459054,1745169038552,-500.0,0.00059989,120]
[358459055,1745169038561,-500.0,0.00059989,120]
[358459056,1745169038571,-500.0,0.00059989,120]
[358459057,1745169038581,-163.30918981,0.00059989,120]
[358459058,1745169038591,-319.73928165,0.00059989,120]
[358459059,1745169038600,-500.0,0.00059989,120]
[358459060,1745169038609,-437.05,0.00059989,120]
[358459061,1745169038622,-500.0,0.00059989,2]
[358459063,1745169038631,-500.0,0.00059989,2]
[358459064,1745169038640,-446.82367999,0.00059989,120]
[358459065,1745169038660,-53.17632001,0.00059989,120]
[358459066,1745169038670,-500.0,0.00059989,2]
[358459067,1745169038679,-500.0,0.00059989,120]
[358459068,1745169038689,-8960.82367999,0.0005999,2]
[358459069,1745169038701,-113690.73896267,0.0005999,2]
[358459070,1745169038710,-345809.586127,0.0005999,5]
[358459071,1745169038719,-250606.58034411,0.0005999,5]
[358459073,1745169038731,-6230.36280058,0.0005999,5]
[358459075,1745169038742,-592.66671817,0.0005999,5]
[358459104,1745169040403,-1325.0000005,0.0005999,5]
[358459136,1745169043424,-356.33722073,0.0005989,15]
[358459137,1745169043434,-1201.86277927,0.0005999,5]
[358459144,1745169044188,-15499.99999999,0.0005999,5]
[358459145,1745169044199,-1000.0,0.0005999,5]
[358459146,1745169044210,-2352.24196674,0.0005999,5]
[358459148,1745169046252,-500.0,0.00059989,120]
[358459149,1745169046262,-264.52560016,0.0005999,5]
[358459150,1745169046276,-3359.09996328,0.0005999,5]
[358459151,1745169046305,-265.5905412,0.0005999,5]
[358459152,1745169046315,-271.14676816,0.0005999,7]
[358459153,1745169046324,-150.98,0.0005999,120]
[358459154,1745169046334,-150.98,0.0005999,120]
[358459155,1745169046343,-150.98,0.0005999,120]
[358459156,1745169046353,-150.98,0.0005999,120]
[358459157,1745169046362,-150.98,0.0005999,120]
[358459158,1745169046372,-150.98,0.0005999,120]
[358459159,1745169046381,-150.98,0.0005999,120]
[358459160,1745169046391,-150.98,0.0005999,120]
[358459161,1745169046400,-150.98,0.0005999,120]
[358459162,1745169046409,-150.98,0.0005999,120]
[358459163,1745169046419,-150.98,0.0005999,120]
[358459164,1745169046428,-141.84055383,0.0005999,120]
[358459165,1745169046440,-9.13944617,0.0005999,120]
[358459166,1745169046449,-150.98,0.0005999,120]
[358459167,1745169046459,-500.0,0.00059999,120]
[358459168,1745169046468,-500.0,0.00059999,8]
[358459169,1745169046478,-500.0,0.00059999,120]
[358459170,1745169046488,-200.88581543,0.00059999,120]
[358459171,1745169046497,-149.3197384,0.00059999,120]
[358459172,1745169046509,-350.6802616,0.00059999,120]
[358459173,1745169046518,-500.0,0.00059999,120]
[358459174,1745169046528,-500.0,0.00059999,120]
[358459175,1745169046537,-500.0,0.00059999,120]
[358459176,1745169046547,-500.0,0.00059999,120]
[358459177,1745169046556,-500.0,0.00059999,120]
[358459178,1745169046566,-500.0,0.00059999,120]
[358459179,1745169046575,-420.67531637,0.00059999,120]
[358459180,1745169046584,-228.64442203,0.00059999,120]
[358459181,1745169046596,-271.35557797,0.00059999,120]
[358459182,1745169046605,-500.0,0.00059999,120]
[358459183,1745169046614,-500.0,0.00059999,120]
[358459184,1745169046624,-500.0,0.00059999,120]
[358459185,1745169046634,-500.0,0.00059999,120]
[358459186,1745169046643,-500.0,0.00059999,120]
[358459187,1745169046652,-5542.14,0.00059999,2]
[358459188,1745169046662,-500.0,0.00059999,120]
[358459189,1745169046672,-500.0,0.00059999,120]
[358459191,1745169046682,-632.69,0.00059999,120]
[358459193,1745169046691,-500.0,0.00059999,120]
[358459194,1745169046700,-500.0,0.00059999,120]
[358459196,1745169046709,-500.0,0.00059999,120]
[358459198,1745169046719,-500.0,0.00059999,120]
[358459200,1745169046728,-500.0,0.00059999,118]
[358459202,1745169046738,-500.0,0.00059999,120]
[358459205,1745169046747,-500.0,0.00059999,120]
[358459207,1745169046757,-500.0,0.00059999,120]
[358459209,1745169046766,-500.0,0.00059999,120]
[358459211,1745169046776,-190.73390304,0.00059999,120]
[358459213,1745169046785,-500.0,0.00059999,120]
[358459214,1745169046795,-500.0,0.00059999,120]
[358459215,1745169046805,-500.0,0.00059999,120]
[358459216,1745169046814,-732.98051899,0.0006,8]
[358459217,1745169046831,-1267.01948101,0.0006,8]
[358459218,1745169046840,-33284.10791772,0.0006,120]
[358459219,1745169046855,-451.17942742,0.0006,120]
[358459229,1745169063786,152.3,0.000481,45]
[358459230,1745169063838,152.3,0.000536,54]
[358459231,1745169063928,152.3,0.000536,54]
[358459232,1745169070696,151.0,0.00049806,30]
[358459233,1745169096926,500.0,0.00055,2]
[358459235,1745169142766,151.0,0.00052359,30]
[358459236,1745169391234,997.73,0.00055,2]
[358459237,1745169392560,150.0,0.000547,120]
[358459238,1745169392775,150.0,0.000547,120]
[358459239,1745169392947,200.0,0.000547,120]
[358459240,1745169394432,150.0,0.000547,120]
[358459241,1745169394674,150.0,0.000547,120]
[358459242,1745169394889,150.0,0.000547,120]
[358459243,1745169395082,150.0,0.000547,120]
[358459244,1745169395269,250.0,0.000547,120]
[358459245,1745169395596,150.0,0.000547,2]
[358459246,1745169396331,150.0,0.000547,120]
[358459247,1745169396514,150.0,0.000547,120]
[358459248,1745169396692,150.0,0.000547,120]
[358459249,1745169396898,150.0,0.000547,120]
[358459250,1745169397228,150.0,0.000547,120]
[358459251,1745169397449,250.0,0.000547,120]
[358459252,1745169400362,150.0,0.000547,120]
[358459253,1745169400546,150.0,0.000547,120]
[358459254,1745169400717,150.0,0.000547,120]
[358459255,1745169400904,150.0,0.000547,120]
[358459256,1745169401110,150.0,0.000547,120]
[358459257,1745169401325,250.0,0.000547,120]
[358459258,1745169402170,150.0,0.000547,120]
[358459259,1745169402357,150.0,0.000547,120]
[358459260,1745169402627,150.0,0.000547,120]
[358459261,1745169403017,150.0,0.000547,120]
[358459262,1745169403239,150.0,0.000547,120]
[358459263,1745169403433,250.0,0.000547,120]
[358459264,1745169514506,157.3408559,0.00038356,2]
[358459265,1745169603101,1005.0,0.0005,2]
[358459266,1745169606037,3975.0,0.00048767,2]
[358459267,1745169606325,152.0,0.00048767,2]
[358459268,1745169606645,3910.216,0.00051767,120]
[358459269,1745169665769,152.32,0.000481,45]
[358459270,1745169665831,152.32,0.000536,54]
[358459271,1745169665884,152.32,0.000536,54]
[358459272,1745169783299,151.0,0.00055,120]
[358459273,1745169913943,450.0,0.00017,2]
[358459274,1745169915024,500.0,0.00019,2]
[358459275,1745169916101,550.0,0.00021,2]
[358459276,1745169928859,8194.7531441,0.0005,2]
[358459277,1745169928886,24534.02,0.0005,2]
[358459278,1745169930589,6681.21680456,0.000199,2]
[358459279,1745169955577,2827.52191156,0.000198,2]
[358459282,1745170061630,15491.26128388,0.00043,2]
[358459286,1745170164101,-513.0,0.0004199,2]
[358459287,1745170164122,-300.0,0.00041999,5]
[358459288,1745170164143,-3715.33108,0.00042,2]
[358459289,1745170168108,-15392.25033744,0.00042,2]
[358459302,1745170231314,-602.21834486,0.0004199,2]
[358459304,1745170231323,-150.98,0.0004199,2]
[358459305,1745170231332,-150.98,0.0004199,2]
[358459306,1745170231341,-150.98,0.0004199,2]
[358459307,1745170231350,-150.98,0.0004199,2]
[358459308,1745170231359,-150.98,0.0004199,2]
[358459309,1745170231368,-150.98,0.0004199,2]
[358459310,1745170231377,-150.98,0.0004199,2]
[358459311,1745170231386,-150.98,0.0004199,2]
[358459312,1745170231395,-150.98,0.0004199,2]
[358459313,1745170231405,-150.98,0.0004199,2]
[358459314,1745170231414,-150.98,0.0004199,2]
[358459315,1745170231423,-150.98,0.0004199,2]
[358459316,1745170231432,-150.98,0.0004199,2]
[358459317,1745170231440,-150.98,0.0004199,2]
[358459318,1745170231450,-277.0,0.00041999,5]
[358459319,1745170231459,-289.18546857,0.00042,2]
[358459320,1745170231468,-42847.93420042,0.00042,2]
[358459321,1745170231479,-851.0101586,0.00042,2]
[358459322,1745170231493,-5242.90326479,0.00042,2]
[358459323,1745170231503,-455074.02742466,0.00042,2]
[358459324,1745170231514,-41667.22257534,0.00042,2]
[358459325,1745170231525,-307.39448736,0.00042,2]
[358459327,1745170231645,-1133.38640239,0.00042,2]
[358459329,1745170231657,-1276.24513935,0.00042,2]
[358459331,1745170231668,-15965.52314063,0.00042,2]
[358459358,1745170237461,-500.0,0.00041999,31]
[358459359,1745170237472,-500.0,0.00041999,31]
[358459360,1745170237481,-500.0,0.00041999,31]
[358459361,1745170237490,-500.0,0.00041999,31]
[358459362,1745170237499,-500.0,0.00041999,31]
[358459363,1745170237508,-500.0,0.00041999,31]
[358459364,1745170237517,-500.0,0.00041999,31]
[358459365,1745170237526,-500.0,0.00041999,31]
[358459366,1745170237535,-553.62814948,0.00041999,31]
[358459367,1745170237543,-9399.10517011,0.00042,2]
[358459368,1745170237554,-395.77951,0.00042,2]
[358459369,1745170237568,-3057.374,0.00042,2]
[358459370,1745170237579,-10813.61687916,0.00042,2]
[358459371,1745170237589,-757.45,0.00042,2]
[358459372,1745170237605,-330.0,0.00042,2]
[358459373,1745170237616,-481.13886879,0.00042,2]
[358459374,1745170237626,-2000.0,0.00042,2]
[358459375,1745170237636,-5756.26978952,0.00042,2]
[358459376,1745170237647,-1341429.0508085,0.00042,2]
[358459377,1745170237656,-320.70349863,0.0004279,15]
[358459378,1745170237666,-222.68641699,0.0004289,2]
[358459379,1745170237675,-50544.1926422,0.0004299,3]
[358459380,1745170237684,-7653.79370231,0.0004299,3]
[358459381,1745170237693,-150.98,0.0004299,2]
[358459382,1745170237701,-150.98,0.0004299,2]
[358459383,1745170237710,-150.98,0.0004299,2]
[358459384,1745170237719,-150.98,0.0004299,2]
[358459385,1745170237728,-150.98,0.0004299,2]
[358459386,1745170237737,-150.98,0.0004299,2]
[358459387,1745170237746,-150.98,0.0004299,2]
[358459388,1745170237755,-150.0,0.00042999,3]
[358459389,1745170237764,-150.0,0.00042999,3]
[358459390,1745170237773,-1818.13,0.00042999,2]
[358459391,1745170237782,-522270.28287189,0.00043,2]
[358459392,1745170237793,-3254.68615234,0.00043,2]
[358459394,1745170237804,-6262.3704407,0.00043,2]
[358459398,1745170237830,-519.750011,0.00043,2]
[358459400,1745170237841,-941.63946266,0.00043,2]
[358459585,1745170239809,-1055.30572224,0.00043,2]
[358459587,1745170239821,-613.38488002,0.00043,2]
[358459596,1745170240025,-154318.14070595,0.00043,2]
[358459598,1745170240035,-320.70349857,0.00044802,15]
[358459600,1745170240044,-250.0,0.00046189,2]
[358459602,1745170240054,-320.70349857,0.00046814,15]
[358459604,1745170240063,-250.0,0.000473,2]
[358459606,1745170240072,-11217.76,0.0004788,2]
[358459608,1745170240081,-19999.99,0.0004788,2]
[358459610,1745170240090,-2009.39407178,0.00047939,2]
[358459612,1745170240099,-4857.21272703,0.00047939,2]
[358459614,1745170240109,-1586.709999,0.00047939,2]
[358459616,1745170240118,-999.999999,0.00047939,2]
[358459618,1745170240127,-1422.505,0.00048767,2]
[358459620,1745170240137,-795.0,0.00048767,2]
[358459622,1745170240146,-320.70349857,0.00048827,15]
[358459624,1745170240155,-150.98,0.0004998,120]
[358459626,1745170240164,-30615.1748092,0.0004999,4]
[358459628,1745170240173,-67968.51747462,0.0005,2]
[358459630,1745170240182,-5452.0,0.0005,120]
[358459632,1745170240191,-2702.5,0.0005,5]
[358459633,1745170240200,-2000.0,0.0005,8]
[358459635,1745170240209,-1755.09,0.0005,60]
[358459638,1745170240219,-320.70349857,0.00050839,15]
[358459639,1745170240228,-785.001,0.00051767,2]
[358459641,1745170240237,-320.70349857,0.00052851,15]
[358459643,1745170240246,-150.98,0.0005399,120]
[358459645,1745170240255,-2000.0,0.00054,8]
[358459647,1745170240264,-554.31643287,0.00054247,120]
[358459649,1745170240274,-250.0,0.00055,2]
[358459651,1745170240283,-159.01708749,0.00055219,30]
[358459653,1745170240292,-150.0,0.00055219,30]
[358459655,1745170240301,-499.38755847,0.00055219,30]
[358459657,1745170240311,-1000.0,0.00055351,120]
[358459659,1745170240319,-748.11632531,0.00056473,2]
[358459661,1745170240328,-999.999999,0.000575,120]
[358459663,1745170240338,-2000.0,0.00058,8]
[358459665,1745170240347,-424.07,0.00058082,120]
[358459667,1745170240355,-500.0,0.00058085,30]
[358459669,1745170240364,-157.95,0.00058298,120]
[358459671,1745170240374,-163.8,0.00058553,2]
[358459673,1745170240382,-2000.0,0.000586,90]
[358459675,1745170240392,-170.07,0.00058792,30]
[358459677,1745170240401,-150.0,0.00058818,7]
[358459679,1745170240410,-7653.79370231,0.0005899,4]
[358459681,1745170240419,-10000.0,0.00059,120]
[358459683,1745170240428,-172.0,0.00059,120]
[358459685,1745170240437,-7653.79370231,0.00059017,4]
[358459687,1745170240447,-15354.37,0.00059027,2]
[358459689,1745170240456,-2080.66752332,0.00059112,2]
[358459691,1745170240465,-172.41,0.00059189,120]
[358459693,1745170240474,-152.32,0.000592,60]
[358459695,1745170240483,-152.32,0.000592,60]
[358459696,1745170240492,-150.98,0.00059294,120]
[358459698,1745170240502,-15307.5874046,0.00059304,4]
[358459700,1745170240511,-372.354,0.00059314,118]
[358459702,1745170240520,-926.93,0.0005933,2]
[358459704,1745170240529,-370.97,0.00059446,120]
[358459706,1745170240538,-500.0,0.00059452,2]
[358459708,1745170240547,-500.0,0.00059452,120]
[358459710,1745170240556,-500.0,0.00059452,120]
[358459712,1745170240570,-500.0,0.00059452,120]
[358459714,1745170240579,-500.0,0.00059452,3]
[358459716,1745170240589,-500.0,0.00059452,120]
[358459718,1745170240598,-500.0,0.00059452,120]
[358459720,1745170240608,-311.17590444,0.00059452,2]
[358459722,1745170240618,-526.8964853,0.00059452,120]
[358459724,1745170240627,-500.0,0.00059452,2]
[358459726,1745170240637,-500.0,0.00059452,2]
[358459728,1745170240646,-500.0,0.00059452,2]
[358459730,1745170240655,-500.0,0.00059452,2]
[358459732,1745170240664,-402.38891429,0.00059452,120]
[358459734,1745170240673,-500.0,0.00059452,120]
[358459736,1745170240682,-500.0,0.00059452,2]
[358459738,1745170240692,-500.0,0.00059452,2]
[358459740,1745170240702,-500.0,0.00059452,120]
[358459742,1745170240711,-500.0,0.00059452,2]
[358459744,1745170240720,-542.85772147,0.00059452,2]
[358459746,1745170240729,-500.0,0.00059452,120]
[358459748,1745170240738,-500.0,0.00059452,2]
[358459750,1745170240747,-500.0,0.00059452,2]
[358459752,1745170240756,-500.0,0.00059452,2]
[358459754,1745170240765,-500.0,0.00059452,2]
[358459756,1745170240774,-458.28091271,0.00059452,120]
[358459758,1745170240783,-546.29982537,0.00059452,120]
[358459760,1745170240791,-500.0,0.00059452,2]
[358459762,1745170240800,-500.0,0.00059452,2]
[358459764,1745170240809,-500.0,0.00059452,2]
[358459766,1745170240818,-500.0,0.00059452,2]
[358459768,1745170240827,-500.0,0.00059452,120]
[358459770,1745170240836,-500.0,0.00059452,120]
[358459772,1745170240845,-500.0,0.00059452,120]
[358459774,1745170240854,-500.0,0.00059452,120]
[358459776,1745170240863,-500.0,0.00059452,120]
[358459778,1745170240872,-500.0,0.00059452,120]
[358459780,1745170240882,-500.0,0.00059452,2]